fUST/lending_fUST_20240325
["ID","MTS","AMOUNT","RATE_DAILY","PERIOD"]
[320347292,1711314647268,-500.0,0.00063013,120]
[320347294,1711314647277,-500.0,0.00063013,120]
[320347296,1711314647286,-500.0,0.00063013,120]
[320347298,1711314647295,-500.0,0.00063013,120]
[320347300,1711314647305,-500.0,0.00063013,120]
[320347302,1711314647314,-371.85979466,0.00063013,120]
[320347304,1711314647323,-17480.93,0.00063013,120]
[320347306,1711314647332,-500.0,0.00063013,120]
[320347308,1711314647341,-8365.44,0.00063013,120]
[320347310,1711314647350,-500.0,0.00063013,120]
[320347312,1711314647359,-508.8,0.00063013,120]
[320347314,1711314647367,-500.0,0.00063013,60]
[320347316,1711314647376,-500.0,0.00063013,120]
[320347318,1711314647385,-4057.13,0.00063013,2]
[320347320,1711314647394,-604.16,0.00063013,120]
[320347322,1711314647403,-12362.09,0.00063013,120]
[320347324,1711314647412,-500.0,0.00063013,120]
[320347326,1711314647421,-748.03,0.00063013,120]
[320347328,1711314647430,-2125.6,0.00063013,120]
[320347330,1711314647439,-500.0,0.00063013,120]
[320347331,1711314647449,-500.0,0.00063013,120]
[320347333,1711314647458,-500.0,0.00063013,120]
[320347335,1711314647467,-2970.68,0.00063013,120]
[320347337,1711314647475,-694.69,0.00063013,120]
[320347339,1711314647484,-22313.25,0.00063013,120]
[320347341,1711314647493,-500.0,0.00063013,120]
[320347343,1711314647502,-500.0,0.00063013,120]
[320347345,1711314647511,-500.0,0.00063013,120]
[320347347,1711314647522,-4561.4,0.00063013,120]
[320347349,1711314647530,-500.0,0.00063013,120]
[320347351,1711314647540,-414.76572228,0.00063013,120]
[320347353,1711314647548,-1831.01,0.00063013,120]
[320347355,1711314647557,-4406.86,0.00063013,120]
[320347357,1711314647566,-500.0,0.00063013,120]
[320347359,1711314647575,-346.07390024,0.00063013,120]
[320347361,1711314647585,-1837.47,0.00063013,120]
[320347363,1711314647593,-658.57,0.00063013,120]
[320347365,1711314647603,-500.0,0.00063013,120]
[320347367,1711314647612,-2332.34,0.00063013,120]
[320347369,1711314647621,-500.0,0.00063013,120]
[320347371,1711314647631,-2761.55,0.00063013,120]
[320347373,1711314647640,-5308.35,0.00063013,120]
[320347375,1711314647649,-500.0,0.00063013,120]
[320347377,1711314647658,-500.0,0.00063013,120]
[320347379,1711314647667,-500.0,0.00063013,120]
[320347381,1711314647676,-11981.95,0.00063013,120]
[320347383,1711314647686,-2313.51,0.00063013,120]
[320347385,1711314647695,-500.0,0.00063013,120]
[320347387,1711314647704,-507.88,0.00063013,120]
[320347389,1711314647713,-500.0,0.00063013,120]
[320347391,1711314647722,-500.0,0.00063013,120]
[320347393,1711314647731,-993.58,0.00063013,120]
[320347395,1711314647740,-500.0,0.00063013,120]
[320347397,1711314647749,-915.03,0.00063013,120]
[320347399,1711314647758,-612.08,0.00063013,120]
[320347401,1711314647767,-500.0,0.00063013,120]
[320347403,1711314647777,-500.0,0.00063013,120]
[320347405,1711314647787,-2001.62,0.00063013,120]
[320347407,1711314647796,-1087.35,0.00063013,120]
[320347409,1711314647806,-500.0,0.00063013,120]
[320347411,1711314647814,-22472.06,0.00063013,120]
[320347413,1711314647823,-25985.32,0.00063013,90]
[320347415,1711314647832,-989.84,0.00063013,120]
[320347417,1711314647844,-500.0,0.00063013,120]
[320347419,1711314647852,-1543.9,0.00063013,120]
[320347421,1711314647861,-3779.01,0.00063013,120]
[320347423,1711314647870,-250.02136318,0.00063013,120]
[320347425,1711314647880,-500.0,0.00063013,120]
[320347427,1711314647889,-5233.88,0.00063013,21]
[320347429,1711314647898,-1878.52,0.00063013,120]
[320347431,1711314647907,-500.0,0.00063013,120]
[320347433,1711314647917,-1817.9,0.00063013,120]
[320347435,1711314647926,-500.0,0.00063013,120]
[320347437,1711314647937,-500.0,0.00063013,120]
[320347439,1711314647947,-1440.6,0.00063013,120]
[320347441,1711314647957,-500.0,0.00063013,120]
[320347443,1711314647966,-500.0,0.00063013,120]
[320347445,1711314647975,-500.0,0.00063013,120]
[320347447,1711314647984,-2284.3,0.00063013,120]
[320347449,1711314647993,-500.0,0.00063013,120]
[320347451,1711314648002,-500.0,0.00063013,120]
[320347453,1711314648011,-500.0,0.00063013,120]
[320347455,1711314648020,-2647.26,0.00063013,120]
[320347457,1711314648029,-500.0,0.00063013,120]
[320347459,1711314648038,-618.17841317,0.00063013,120]
[320347461,1711314648047,-4853.11,0.00063013,120]
[320347463,1711314648056,-500.0,0.00063013,120]
[320347465,1711314648066,-1492.3,0.00063013,120]
[320347472,1711314648130,-500.0,0.00063013,120]
[320347474,1711314648143,-2912.27,0.00063527,120]
[320347476,1711314648153,-2912.27,0.00064075,120]
[320347478,1711314648163,-151.77830393,0.00064389,120]
[320347481,1711314648172,-176.3661763,0.0006441,12]
[320347483,1711314648181,-2912.27,0.00064623,120]
[320347485,1711314648190,-2011.19544288,0.00065,120]
[320347487,1711314648199,-2912.27,0.0006517,120]
[320347489,1711314648213,-151.77830393,0.00065717,120]
[320347491,1711314648223,-2912.27,0.00065718,120]
[320347494,1711314648243,-150.5,0.00065723,35]
[320347496,1711314648253,-167.61,0.00065723,35]
[320347498,1711314648263,-150.5,0.00065733,35]
[320347500,1711314648273,-150.5,0.00065733,35]
[320347502,1711314648283,-150.5,0.00065743,35]
[320347504,1711314648293,-150.5,0.00065743,35]
[320347506,1711314648304,-500.0,0.00065753,120]
[320347508,1711314648316,-500.0,0.00065753,120]
[320347510,1711314648327,-500.0,0.00065753,120]
[320347513,1711314648337,-803.28,0.00065753,120]
[320347515,1711314648348,-500.0,0.00065753,120]
[320347517,1711314648358,-500.0,0.00065753,120]
[320347519,1711314648368,-500.0,0.00065753,120]
[320347521,1711314648378,-500.0,0.00065753,120]
[320347523,1711314648388,-500.0,0.00065753,120]
[320347525,1711314648398,-500.0,0.00065753,120]
[320347527,1711314648408,-500.0,0.00065753,120]
[320347529,1711314648418,-500.0,0.00065753,120]
[320347531,1711314648428,-715.49,0.00065753,120]
[320347533,1711314648438,-500.0,0.00065753,120]
[320347535,1711314648447,-500.0,0.00065753,120]
[320347537,1711314648457,-500.0,0.00065753,120]
[320347539,1711314648471,-500.0,0.00065753,120]
[320347541,1711314648482,-500.0,0.00065753,120]
[320347543,1711314648491,-500.0,0.00065753,120]
[320347545,1711314648501,-500.0,0.00065753,120]
[320347547,1711314648511,-500.0,0.00065753,2]
[320347549,1711314648521,-500.0,0.00065753,120]
[320347551,1711314648531,-2206.63,0.00065753,120]
[320347553,1711314648541,-500.0,0.00065753,120]
[320347555,1711314648551,-2011.08,0.00065753,120]
[320347557,1711314648561,-500.0,0.00065753,2]
[320347559,1711314648571,-500.0,0.00065753,120]
[320347560,1711314648580,-500.0,0.00065753,120]
[320347561,1711314648589,-545.3,0.00065753,120]
[320347562,1711314648598,-500.0,0.00065753,120]
[320347563,1711314648608,-419.17710066,0.00065753,120]
[320347564,1711314648617,-500.0,0.00065753,120]
[320347565,1711314648626,-500.0,0.00065753,120]
[320347566,1711314648636,-500.0,0.00065753,120]
[320347567,1711314648645,-643.61912892,0.00065753,120]
[320347568,1711314648655,-500.0,0.00065753,120]
[320347569,1711314648664,-500.0,0.00065753,120]
[320347570,1711314648673,-943.16,0.00065753,120]
[320347571,1711314648682,-514.3,0.00065753,120]
[320347572,1711314648692,-3472.67,0.00065753,120]
[320347573,1711314648701,-500.0,0.00065753,120]
[320347574,1711314648710,-500.0,0.00065753,120]
[320347575,1711314648721,-500.0,0.00065753,120]
[320347576,1711314648730,-500.0,0.00065753,120]
[320347577,1711314648739,-500.0,0.00065753,120]
[320347578,1711314648748,-500.0,0.00065753,120]
[320347579,1711314648757,-500.0,0.00065753,120]
[320347580,1711314648767,-500.0,0.00065753,120]
[320347581,1711314648776,-500.0,0.00065753,120]
[320347582,1711314648786,-173.31459803,0.00065753,120]
[320347584,1711314648796,-500.0,0.00065753,120]
[320347586,1711314648809,-500.0,0.00065753,120]
[320347588,1711314648818,-500.0,0.00065753,120]
[320347590,1711314648827,-500.0,0.00065753,120]
[320347592,1711314648836,-500.0,0.00065753,120]
[320347594,1711314648846,-264.13626269,0.00065753,120]
[320347596,1711314648855,-500.0,0.00065753,30]
[320347598,1711314648865,-958.04,0.00065753,120]
[320347600,1711314648875,-500.14,0.00065753,120]
[320347602,1711314648884,-500.0,0.00065753,120]
[320347604,1711314648893,-500.0,0.00065753,120]
[320347606,1711314648902,-500.0,0.00065753,120]
[320347608,1711314648912,-500.0,0.00065753,120]
[320347610,1711314648922,-500.0,0.00065753,120]
[320347612,1711314648932,-500.0,0.00065753,120]
[320347614,1711314648941,-500.0,0.00065753,120]
[320347616,1711314648951,-500.0,0.00065753,120]
[320347618,1711314648960,-725.0,0.00065753,120]
[320347620,1711314648970,-285.85357317,0.00065753,120]
[320347622,1711314648980,-500.0,0.00065753,120]
[320347624,1711314648989,-500.0,0.00065753,120]
[320347625,1711314648999,-500.0,0.00065753,120]
[320347627,1711314649008,-500.0,0.00065753,120]
[320347629,1711314649018,-500.0,0.00065753,120]
[320347631,1711314649027,-500.0,0.00065753,120]
[320347633,1711314649037,-500.0,0.00065753,120]
[320347636,1711314649047,-500.0,0.00065753,60]
[320347638,1711314649056,-500.0,0.00065753,120]
[320347640,1711314649067,-500.0,0.00065753,120]
[320347642,1711314649077,-2420.29,0.00065753,120]
[320347644,1711314649086,-500.0,0.00065753,120]
[320347646,1711314649095,-500.0,0.00065753,120]
[320347648,1711314649105,-2246.99,0.00065753,120]
[320347650,1711314649115,-500.0,0.00065753,120]
[320347658,1711314649192,-520.98,0.00065753,120]
[320347660,1711314649201,-547.6,0.00065753,120]
[320347662,1711314649212,-500.0,0.00065753,120]
[320347664,1711314649222,-500.0,0.00065753,120]
[320347667,1711314649231,-500.0,0.00065753,120]
[320347668,1711314649240,-500.0,0.00065753,120]
[320347670,1711314649250,-500.0,0.00065753,120]
[320347672,1711314649258,-500.0,0.00065753,120]
[320347674,1711314649268,-500.0,0.00065753,120]
[320347677,1711314649277,-500.0,0.00065753,120]
[320347678,1711314649286,-500.0,0.00065753,120]
[320347680,1711314649296,-17480.93,0.00065753,120]
[320347682,1711314649307,-500.0,0.00065753,120]
[320347684,1711314649316,-8365.44,0.00065753,120]
[320347686,1711314649326,-500.0,0.00065753,120]
[320347688,1711314649335,-500.0,0.00065753,60]
[320347690,1711314649343,-508.8,0.00065753,120]
[320347692,1711314649352,-500.0,0.00065753,120]
[320347694,1711314649362,-4057.13,0.00065753,2]
[320347696,1711314649371,-604.16,0.00065753,120]
[320347698,1711314649380,-12362.09,0.00065753,120]
[320347700,1711314649389,-500.0,0.00065753,120]
[320347702,1711314649398,-748.03,0.00065753,120]
[320347704,1711314649407,-2125.6,0.00065753,120]
[320347706,1711314649416,-504.46764589,0.00065753,120]
[320347708,1711314649425,-500.0,0.00065753,120]
[320347710,1711314649434,-500.0,0.00065753,120]
[320347712,1711314649443,-2970.68,0.00065753,120]
[320347714,1711314649452,-694.69,0.00065753,120]
[320347716,1711314649463,-22313.25,0.00065753,120]
[320347718,1711314649471,-500.0,0.00065753,120]
[320347720,1711314649480,-500.0,0.00065753,120]
[320347722,1711314649489,-500.0,0.00065753,120]
[320347724,1711314649499,-4561.4,0.00065753,120]
[320347726,1711314649508,-500.0,0.00065753,120]
[320347729,1711314649517,-1831.01,0.00065753,120]
[320347730,1711314649526,-4406.86,0.00065753,120]
[320347732,1711314649536,-500.0,0.00065753,120]
[320347734,1711314649545,-1837.47,0.00065753,120]
[320347736,1711314649554,-658.57,0.00065753,120]
[320347738,1711314649563,-500.0,0.00065753,120]
[320347740,1711314649572,-2332.34,0.00065753,120]
[320347742,1711314649581,-500.0,0.00065753,120]
[320347744,1711314649590,-2761.55,0.00065753,120]
[320347746,1711314649599,-5308.35,0.00065753,120]
[320347748,1711314649608,-500.0,0.00065753,120]
[320347750,1711314649617,-541.19961783,0.00065753,120]
[320347752,1711314649627,-500.0,0.00065753,120]
[320347754,1711314649636,-11981.95,0.00065753,120]
[320347756,1711314649645,-2313.51,0.00065753,120]
[320347759,1711314649654,-500.0,0.00065753,120]
[320347761,1711314649665,-507.88,0.00065753,120]
[320347763,1711314649674,-500.0,0.00065753,120]
[320347765,1711314649683,-500.0,0.00065753,120]
[320347767,1711314649692,-993.58,0.00065753,120]
[320347769,1711314649701,-500.0,0.00065753,120]
[320347771,1711314649710,-915.03,0.00065753,120]
[320347773,1711314649721,-612.08,0.00065753,120]
[320347774,1711314649730,-500.0,0.00065753,120]
[320347777,1711314649739,-500.0,0.00065753,120]
[320347778,1711314649748,-2001.62,0.00065753,120]
[320347780,1711314649757,-1087.35,0.00065753,120]
[320347782,1711314649766,-500.0,0.00065753,120]
[320347784,1711314649775,-22472.06,0.00065753,120]
[320347786,1711314649785,-25985.32,0.00065753,90]
[320347789,1711314649794,-989.84,0.00065753,120]
[320347791,1711314649803,-500.0,0.00065753,120]
[320347792,1711314649812,-1543.9,0.00065753,120]
[320347794,1711314649822,-3779.01,0.00065753,120]
[320347796,1711314649831,-500.0,0.00065753,120]
[320347798,1711314649840,-5233.88,0.00065753,21]
[320347800,1711314649849,-1878.52,0.00065753,120]
[320347802,1711314649858,-500.0,0.00065753,120]
[320347804,1711314649867,-1817.9,0.00065753,120]
[320347806,1711314649877,-500.0,0.00065753,120]
[320347808,1711314649886,-500.0,0.00065753,120]
[320347810,1711314649896,-1440.6,0.00065753,120]
[320347812,1711314649907,-500.0,0.00065753,120]
[320347815,1711314649920,-500.0,0.00065753,120]
[320347816,1711314649929,-592.28538336,0.00065753,120]
[320347818,1711314649939,-2284.3,0.00065753,120]
[320347820,1711314649948,-500.0,0.00065753,120]
[320347822,1711314649957,-500.0,0.00065753,120]
[320347824,1711314649968,-500.0,0.00065753,120]
[320347826,1711314649977,-2647.26,0.00065753,120]
[320347828,1711314649986,-500.0,0.00065753,120]
[320347830,1711314649995,-4853.11,0.00065753,120]
[320347832,1711314650004,-500.0,0.00065753,120]
[320347834,1711314650014,-1492.3,0.00065753,120]
[320347836,1711314650023,-151.77830393,0.00065827,120]
[320347838,1711314650033,-2000.0,0.00066,120]
[320347846,1711314650090,-2912.27000007,0.00066266,120]
[320347848,1711314650104,-1000.0,0.00067379,120]
[320347850,1711314650113,-500.0,0.00068493,120]
[320347852,1711314650126,-500.0,0.00068493,120]
[320347854,1711314650135,-500.0,0.00068493,120]
[320347856,1711314650144,-803.28,0.00068493,120]
[320347858,1711314650153,-500.0,0.00068493,120]
[320347860,1711314650163,-500.0,0.00068493,120]
[320347862,1711314650172,-500.0,0.00068493,120]
[320347864,1711314650181,-500.0,0.00068493,120]
[320347866,1711314650190,-500.0,0.00068493,120]
[320347868,1711314650202,-500.0,0.00068493,120]
[320347870,1711314650213,-500.0,0.00068493,120]
[320347872,1711314650223,-715.49,0.00068493,120]
[320347874,1711314650233,-500.0,0.00068493,120]
[320347876,1711314650242,-500.0,0.00068493,120]
[320347878,1711314650251,-500.0,0.00068493,120]
[320347880,1711314650260,-500.0,0.00068493,120]
[320347882,1711314650269,-500.0,0.00068493,120]
[320347884,1711314650280,-500.0,0.00068493,120]
[320347886,1711314650289,-500.0,0.00068493,120]
[320347888,1711314650298,-500.0,0.00068493,2]
[320347890,1711314650308,-500.0,0.00068493,120]
[320347892,1711314650318,-2206.63,0.00068493,120]
[320347894,1711314650327,-500.0,0.00068493,120]
[320347896,1711314650337,-2011.08,0.00068493,120]
[320347898,1711314650346,-500.0,0.00068493,120]
[320347900,1711314650356,-500.0,0.00068493,120]
[320347902,1711314650366,-500.0,0.00068493,120]
[320347904,1711314650376,-500.0,0.00068493,120]
[320347906,1711314650386,-500.0,0.00068493,120]
[320347908,1711314650395,-500.0,0.00068493,120]
[320347910,1711314650405,-500.0,0.00068493,120]
[320347912,1711314650414,-500.0,0.00068493,120]
[320347914,1711314650424,-545.3,0.00068493,120]
[320347916,1711314650433,-500.0,0.00068493,120]
[320347918,1711314650442,-500.0,0.00068493,120]
[320347920,1711314650452,-500.0,0.00068493,120]
[320347922,1711314650462,-500.0,0.00068493,120]
[320347924,1711314650472,-500.0,0.00068493,120]
[320347926,1711314650481,-500.0,0.00068493,120]
[320347928,1711314650491,-943.16,0.00068493,120]
[320347930,1711314650501,-514.3,0.00068493,120]
[320347933,1711314650517,-3472.67,0.00068493,120]
[320347936,1711314650538,-500.0,0.00068493,120]
[320347939,1711314650557,-500.0,0.00068493,120]
[320347942,1711314650577,-500.0,0.00068493,120]
[320347945,1711314650594,-500.0,0.00068493,120]
[320347948,1711314650613,-500.0,0.00068493,120]
[320347951,1711314650632,-500.0,0.00068493,120]
[320347954,1711314650649,-281.54764242,0.00068493,120]
[320347957,1711314650668,-500.0,0.00068493,120]
[320347960,1711314650686,-500.0,0.00068493,120]
[320347963,1711314650705,-500.0,0.00068493,120]
[320347966,1711314650727,-500.0,0.00068493,120]
[320347968,1711314650740,-500.0,0.00068493,120]
[320347971,1711314650757,-500.0,0.00068493,120]
[320347974,1711314650772,-500.0,0.00068493,120]
[320347976,1711314650785,-958.04,0.00068493,120]
[320347979,1711314650800,-500.14,0.00068493,120]
[320347981,1711314650814,-500.0,0.00068493,120]
[320347984,1711314650829,-500.0,0.00068493,120]
[320347987,1711314650844,-500.0,0.00068493,120]
[320347989,1711314650859,-500.0,0.00068493,120]
[320347992,1711314650874,-499.19217239,0.00068493,120]
[320347994,1711314650889,-500.0,0.00068493,120]
[320347997,1711314650903,-500.0,0.00068493,120]
[320347999,1711314650918,-500.0,0.00068493,120]
[320348002,1711314650933,-725.0,0.00068493,120]
[320348004,1711314650948,-597.11945485,0.00068493,120]
[320348007,1711314650963,-500.0,0.00068493,120]
[320348009,1711314650979,-500.0,0.00068493,120]
[320348012,1711314650994,-500.0,0.00068493,120]
[320348014,1711314651009,-500.0,0.00068493,120]
[320348017,1711314651023,-471.12271502,0.00068493,120]
[320348019,1711314651037,-500.0,0.00068493,120]
[320348022,1711314651052,-500.0,0.00068493,60]
[320348024,1711314651066,-500.0,0.00068493,120]
[320348026,1711314651081,-500.0,0.00068493,120]
[320348027,1711314651095,-2420.29,0.00068493,120]
[320348028,1711314651109,-500.0,0.00068493,120]
[320348029,1711314651125,-500.0,0.00068493,120]
[320348030,1711314651141,-2246.99,0.00068493,120]
[320348031,1711314651155,-500.0,0.00068493,120]
[320348034,1711314651169,-520.98,0.00068493,120]
[320348044,1711314651257,-547.6,0.00068493,120]
[320348046,1711314651267,-500.0,0.00068493,120]
[320348048,1711314651277,-500.0,0.00068493,120]
[320348050,1711314651286,-500.0,0.00068493,120]
[320348052,1711314651296,-500.0,0.00068493,120]
[320348054,1711314651306,-500.0,0.00068493,120]
[320348056,1711314651315,-500.0,0.00068493,120]
[320348058,1711314651324,-500.0,0.00068493,120]
[320348060,1711314651334,-500.0,0.00068493,120]
[320348062,1711314651344,-500.0,0.00068493,120]
[320348064,1711314651353,-17480.93,0.00068493,120]
[320348066,1711314651363,-500.0,0.00068493,120]
[320348068,1711314651372,-8365.44,0.00068493,120]
[320348070,1711314651382,-500.0,0.00068493,120]
[320348072,1711314651391,-500.0,0.00068493,60]
[320348074,1711314651400,-508.8,0.00068493,120]
[320348076,1711314651409,-505.09322767,0.00068493,120]
[320348078,1711314651419,-4057.13,0.00068493,2]
[320348080,1711314651429,-604.16,0.00068493,120]
[320348083,1711314651438,-12362.09,0.00068493,120]
[320348085,1711314651448,-500.0,0.00068493,120]
[320348086,1711314651458,-748.03,0.00068493,120]
[320348089,1711314651468,-2125.6,0.00068493,120]
[320348091,1711314651478,-500.0,0.00068493,120]
[320348092,1711314651488,-319.31091874,0.00068493,120]
[320348095,1711314651498,-2970.68,0.00068493,120]
[320348097,1711314651508,-694.69,0.00068493,120]
[320348099,1711314651518,-22313.25,0.00068493,120]
[320348101,1711314651527,-500.0,0.00068493,120]
[320348103,1711314651537,-500.0,0.00068493,120]
[320348105,1711314651546,-500.0,0.00068493,120]
[320348107,1711314651555,-4561.4,0.00068493,120]
[320348109,1711314651564,-500.0,0.00068493,120]
[320348111,1711314651575,-4406.86,0.00068493,120]
[320348113,1711314651585,-1831.01,0.00068493,120]
[320348115,1711314651595,-500.0,0.00068493,120]
[320348117,1711314651604,-1837.47,0.00068493,120]
[320348119,1711314651613,-658.57,0.00068493,120]
[320348121,1711314651622,-500.0,0.00068493,120]
[320348123,1711314651631,-2332.34,0.00068493,120]
[320348125,1711314651641,-500.0,0.00068493,120]
[320348127,1711314651650,-2761.55,0.00068493,120]
[320348129,1711314651659,-5308.35,0.00068493,120]
[320348131,1711314651668,-500.0,0.00068493,120]
[320348133,1711314651678,-500.0,0.00068493,120]
[320348135,1711314651687,-11981.95,0.00068493,120]
[320348137,1711314651696,-2313.51,0.00068493,120]
[320348139,1711314651706,-500.0,0.00068493,120]
[320348141,1711314651715,-507.88,0.00068493,120]
[320348143,1711314651725,-500.0,0.00068493,120]
[320348145,1711314651734,-500.0,0.00068493,120]
[320348147,1711314651743,-993.58,0.00068493,120]
[320348149,1711314651753,-500.0,0.00068493,120]
[320348151,1711314651762,-915.03,0.00068493,120]
[320348153,1711314651771,-612.08,0.00068493,120]
[320348155,1711314651781,-500.0,0.00068493,120]
[320348157,1711314651790,-500.0,0.00068493,120]
[320348159,1711314651800,-2001.62,0.00068493,120]
[320348161,1711314651809,-1087.35,0.00068493,120]
[320348163,1711314651819,-200.0,0.00068493,120]
[320348165,1711314651828,-22472.06,0.00068493,120]
[320348167,1711314651837,-25985.32,0.00068493,90]
[320348169,1711314651846,-989.84,0.00068493,120]
[320348171,1711314651855,-182.47012551,0.00068493,120]
[320348173,1711314651867,-1543.9,0.00068493,120]
[320348175,1711314651876,-3779.01,0.00068493,120]
[320348177,1711314651886,-500.0,0.00068493,120]
[320348179,1711314651895,-5233.88,0.00068493,21]
[320348181,1711314651905,-1878.52,0.00068493,120]
[320348183,1711314651915,-500.0,0.00068493,120]
[320348186,1711314651924,-1817.9,0.00068493,120]
[320348188,1711314651934,-500.0,0.00068493,120]
[320348189,1711314651946,-500.0,0.00068493,120]
[320348192,1711314651957,-1440.6,0.00068493,120]
[320348194,1711314651967,-500.0,0.00068493,120]
[320348195,1711314651977,-500.0,0.00068493,120]
[320348197,1711314651986,-2284.3,0.00068493,120]
[320348199,1711314651995,-500.0,0.00068493,120]
[320348201,1711314652005,-500.0,0.00068493,120]
[320348204,1711314652014,-500.0,0.00068493,120]
[320348206,1711314652023,-2647.26,0.00068493,120]
[320348208,1711314652032,-500.0,0.00068493,120]
[320348210,1711314652041,-4853.11,0.00068493,120]
[320348212,1711314652050,-500.0,0.00068493,120]
[320348214,1711314652059,-1492.3,0.00068493,120]
[320348216,1711314652068,-151.0,0.00068493,30]
[320348218,1711314652077,-151.0,0.00068493,30]
[320348220,1711314652086,-1000.0,0.00068493,120]
[320348222,1711314652095,-1119.447366,0.00068493,120]
[320348224,1711314652105,-1780.77509683,0.00069553,120]
[320348226,1711314652114,-685.02748362,0.00069553,120]
[320348228,1711314652123,-150.5,0.0006997,35]
[320348230,1711314652136,-150.5,0.0006997,35]
[320348232,1711314652145,-150.5,0.0006998,35]
[320348234,1711314652154,-150.5,0.0006998,35]
[320348236,1711314652163,-150.5,0.0006999,35]
[320348238,1711314652172,-150.5,0.0006999,35]
[320348240,1711314652182,-200.20630345,0.00069999,120]
[320348242,1711314652191,-201.08414251,0.00069999,120]
[320348244,1711314652200,-560.59749128,0.00069999,120]
[320348246,1711314652211,-560.59749128,0.00069999,120]
[320348254,1711314652274,-560.59749128,0.00069999,120]
[320348256,1711314652284,-560.59749128,0.00069999,120]
[320348258,1711314652293,-560.59749128,0.00069999,120]
[320348260,1711314652303,-560.59749128,0.00069999,120]
[320348262,1711314652312,-560.59749128,0.00069999,120]
[320348264,1711314652322,-560.59749128,0.00069999,120]
[320348266,1711314652332,-560.59749128,0.00069999,120]
[320348268,1711314652341,-560.59749128,0.00069999,120]
[320348270,1711314652350,-560.59749128,0.00069999,120]
[320348272,1711314652359,-560.59749128,0.00069999,120]
[320348274,1711314652368,-560.59749128,0.00069999,120]
[320348276,1711314652377,-560.59749128,0.00069999,120]
[320348278,1711314652387,-560.59749128,0.00069999,120]
[320348281,1711314652396,-560.59749128,0.00069999,120]
[320348283,1711314652405,-560.59749128,0.00069999,120]
[320348284,1711314652414,-560.59749128,0.00069999,120]
[320348286,1711314652423,-560.59749128,0.00069999,120]
[320348289,1711314652433,-560.59749128,0.00069999,120]
[320348290,1711314652441,-560.59749128,0.00069999,120]
[320348292,1711314652450,-560.59749128,0.00069999,120]
[320348294,1711314652459,-560.59749128,0.00069999,120]
[320348296,1711314652469,-560.59749128,0.00069999,120]
[320348298,1711314652478,-675.89382481,0.00069999,120]
[320348300,1711314652487,-675.89382481,0.00069999,120]
[320348302,1711314652496,-675.89382481,0.00069999,120]
[320348305,1711314652506,-675.89382481,0.00069999,120]
[320348306,1711314652514,-675.89382481,0.00069999,120]
[320348308,1711314652524,-675.89382481,0.00069999,120]
[320348310,1711314652533,-675.89382481,0.00069999,120]
[320348313,1711314652542,-675.89382481,0.00069999,120]
[320348315,1711314652551,-822.33748687,0.00069999,120]
[320348317,1711314652560,-822.33748687,0.00069999,120]
[320348318,1711314652568,-822.33748687,0.00069999,120]
[320348321,1711314652578,-1203.0,0.0007,120]
[320348323,1711314652588,-25076.57231369,0.0007,120]